Workbook

Sheet Analysis result
B2: Profile data-analysis | V2: last data cell | W2: blanks | X2: channels | Z2: labelcolumn | AA2: label
B3: by Unisense 2011.09.01 version 4 | V3: =MAX(V4:V65538) -> 313 | W3: =IF(RawData!A3="","blank","") ->  | X3: 1 | Y3: =IF(AA3="no dataset","",X3) -> 1 | Z3: =1+(4+$X$15+$Y$15)*(X3-1) -> 1 | AA3: =IF(INDIRECT("RawData!"&ADDRESS(2,Z3+1))<>"",IF(INDIRECT("RawData!"&ADDRESS(1,Z3))="","no sensorlabel",INDIRECT("RawData!"&ADDRESS(1,Z3))),"no dataset") -> Sensor A | AB3: =INDIRECT("RawData!"&ADDRESS(2,Z3+2+$X$15+$Y$15)) -> oxygen [%]
V4: =IF(RawData!A4<>"",ROW(RawData!A4),0) -> 4 | W4: =IF(RawData!A4="","blank","") ->  | X4: 2 | Y4: 2 | Z4: 5 | AA4: =IF(INDIRECT("RawData!"&ADDRESS(2,Z4+1))<>"",IF(INDIRECT("RawData!"&ADDRESS(1,Z4))="","no sensorlabel",INDIRECT("RawData!"&ADDRESS(1,Z4))),"no dataset") -> Sensor B | AB4: Oxygen [%]
B5: About data file | V5: =IF(RawData!A5<>"",ROW(RawData!A5),0) -> 5 | W5: =IF(RawData!A5="","blank","") ->  | X5: 3 | Z5: 9 | AA5: no dataset | AB5: 0
B6: Filename | C6: data konstrueret fra Profile analysis v.003.xls | V6: =IF(RawData!A6<>"",ROW(RawData!A6),0) -> 6 | W6: =IF(RawData!A6="","blank","") ->  | X6: 4 | Z6: 13 | AA6: no dataset | AB6: 0
B7: # of profiles | C7: =IF(V3=0,-1,COUNTIF(OFFSET(RawData!A1,0,0,V3,1),"")+1) -> 21 | V7: =IF(RawData!A7<>"",ROW(RawData!A7),0) -> 7 | W7: =IF(RawData!A7="","blank","") ->  | X7: 5 | Z7: 17 | AA7: no dataset | AB7: 0
B8: Data channels: | C8: =IF(AA3="no dataset","",X3&": "&AA3&" ("&AB3&")") -> 1: Sensor A (oxygen [%]) | V8: =IF(RawData!A8<>"",ROW(RawData!A8),0) -> 8 | W8: =IF(RawData!A8="","blank","") ->  | X8: 6 | Z8: 21 | AA8: no dataset | AB8: 0
C9: 2: Sensor B (Oxygen [%]) | V9: =IF(RawData!A9<>"",ROW(RawData!A9),0) -> 9 | W9: =IF(RawData!A9="","blank","") ->  | X9: channels total | Z9: =6-COUNTIF(AA3:AA8,"no dataset") -> 2
V10: =IF(RawData!A10<>"",ROW(RawData!A10),0) -> 10 | W10: =IF(RawData!A10="","blank","") -> 
V11: =IF(RawData!A11<>"",ROW(RawData!A11),0) -> 11 | W11: =IF(RawData!A11="","blank","") ->  | X11: Header size | Y11: 2
V12: =IF(RawData!A12<>"",ROW(RawData!A12),0) -> 12 | W12: =IF(RawData!A12="","blank","") ->  | X12: Units | Y12: =INDIRECT("RawData!"&ADDRESS(D16-1,3+$X$15+$Y$15)) -> oxygen [%]
V13: =IF(RawData!A13<>"",ROW(RawData!A13),0) -> 13 | W13: =IF(RawData!A13="","blank","") -> 
V14: =IF(RawData!A14<>"",ROW(RawData!A14),0) -> 14 | W14: =IF(RawData!A14="","blank","") ->  | X14: X-axis? | Y14: y-axis?
B15: Profile Nr | C15: Comment | D15: start | E15: Time | F15: Datapoints | V15: =IF(RawData!A15<>"",ROW(RawData!A15),0) -> 15 | W15: =IF(RawData!A15="","blank","") ->  | X15: =IF(ISNUMBER(MATCH("X (µm)",RawData!2:2,0)),1,0) -> 0 | Y15: =IF(ISNUMBER(MATCH("Y (µm)",RawData!2:2,0)),1,0) -> 0
B16: =IF(ROW()-ROW($B$15)-1<=$C$7,ROW()-ROW($B$15),"") -> 1 | C16: =IF(B16="","",INDIRECT("RawData!"&ADDRESS(D16,(4+$X$15+$Y$15)*$Z$9+1))) -> 0 | D16: =IF(B16="","",MATCH("Time",RawData!A:A,0)+1) -> 3 | E16: =IF(B16="","",INDIRECT("RawData!"&ADDRESS(D16,1))) -> 13:03:53 | F16: =IF(B16=$C$7,$V$3-D16+1,IF(B17="","",D17-D16-$Y$11+1)) -> 14 | V16: =IF(RawData!A16<>"",ROW(RawData!A16),0) -> 16 | W16: =IF(RawData!A16="","blank","") -> 
B17: =IF(B16<$C$7,B16+1,"") -> 2 | C17: =IF(B17="","",INDIRECT("RawData!"&ADDRESS(D17,(4+$X$15+$Y$15)*$Z$9+1))) -> 0 | D17: =IF(B17="","",MATCH("blank",OFFSET($W$1,D16,0,65536-D16-1,1),0)+D16+1) -> 18 | E17: =IF(B17="","",INDIRECT("RawData!"&ADDRESS(D17,1))) -> 13:07:22 | F17: 14 | V17: =IF(RawData!A17<>"",ROW(RawData!A17),0) -> 0 | W17: =IF(RawData!A17="","blank","") -> blank
B18: =IF(B17<$C$7,B17+1,"") -> 3 | C18: 0 | D18: =IF(B18="","",MATCH("blank",OFFSET($W$1,D17,0,65536-D17-1,1),0)+D17+1) -> 33 | E18: =IF(B18="","",INDIRECT("RawData!"&ADDRESS(D18,1))) -> 13:09:23 | F18: 14 | V18: =IF(RawData!A18<>"",ROW(RawData!A18),0) -> 18 | W18: =IF(RawData!A18="","blank","") -> 
B19: 4 | C19: 0 | D19: 48 | E19: 13:12:29 | F19: 14 | V19: =IF(RawData!A19<>"",ROW(RawData!A19),0) -> 19 | W19: =IF(RawData!A19="","blank","") -> 
B20: 5 | C20: 0 | D20: 63 | E20: 13:14:53 | F20: 11 | V20: =IF(RawData!A20<>"",ROW(RawData!A20),0) -> 20 | W20: =IF(RawData!A20="","blank","") -> 
B21: 6 | C21: 0 | D21: 75 | E21: 13:28:24 | F21: 14 | V21: =IF(RawData!A21<>"",ROW(RawData!A21),0) -> 21 | W21: =IF(RawData!A21="","blank","") -> 
B22: 7 | C22: 0 | D22: 90 | E22: 13:31:31 | F22: 14 | V22: =IF(RawData!A22<>"",ROW(RawData!A22),0) -> 22 | W22: =IF(RawData!A22="","blank","") -> 
B23: 8 | C23: 0 | D23: 105 | E23: 13:33:54 | F23: 14 | V23: =IF(RawData!A23<>"",ROW(RawData!A23),0) -> 23 | W23: =IF(RawData!A23="","blank","") -> 
B24: 9 | C24: 0 | D24: 120 | E24: 13:36:07 | F24: 14 | V24: =IF(RawData!A24<>"",ROW(RawData!A24),0) -> 24 | W24: =IF(RawData!A24="","blank","") -> 
B25: 10 | C25: 0 | D25: 135 | E25: 13:38:31 | F25: 14 | V25: =IF(RawData!A25<>"",ROW(RawData!A25),0) -> 25 | W25: =IF(RawData!A25="","blank","") -> 
B26: 11 | C26: 0 | D26: 150 | E26: 13:40:51 | F26: 14 | V26: =IF(RawData!A26<>"",ROW(RawData!A26),0) -> 26 | W26: =IF(RawData!A26="","blank","") -> 
B27: 12 | C27: 0 | D27: 165 | E27: 13:43:08 | F27: 14 | V27: =IF(RawData!A27<>"",ROW(RawData!A27),0) -> 27 | W27: =IF(RawData!A27="","blank","") -> 
B28: 13 | C28: 0 | D28: 180 | E28: 13:45:39 | F28: 14 | V28: =IF(RawData!A28<>"",ROW(RawData!A28),0) -> 28 | W28: =IF(RawData!A28="","blank","") -> 
B29: 14 | C29: 0 | D29: 195 | E29: 13:48:03 | F29: 14 | V29: =IF(RawData!A29<>"",ROW(RawData!A29),0) -> 29 | W29: =IF(RawData!A29="","blank","") -> 
B30: 15 | C30: 0 | D30: 210 | E30: 13:50:06 | F30: 14 | V30: =IF(RawData!A30<>"",ROW(RawData!A30),0) -> 30 | W30: =IF(RawData!A30="","blank","") -> 
B31: 16 | C31: 0 | D31: 225 | E31: 13:56:39 | F31: 14 | V31: =IF(RawData!A31<>"",ROW(RawData!A31),0) -> 31 | W31: =IF(RawData!A31="","blank","") -> 
B32: 17 | C32: 0 | D32: 240 | E32: 13:59:43 | F32: 14 | V32: =IF(RawData!A32<>"",ROW(RawData!A32),0) -> 0 | W32: =IF(RawData!A32="","blank","") -> blank
B33: 18 | C33: 0 | D33: 255 | E33: 14:03:03 | F33: 14 | V33: =IF(RawData!A33<>"",ROW(RawData!A33),0) -> 33 | W33: =IF(RawData!A33="","blank","") -> 
B34: 19 | C34: 0 | D34: 270 | E34: 14:06:08 | F34: 14 | V34: =IF(RawData!A34<>"",ROW(RawData!A34),0) -> 34 | W34: =IF(RawData!A34="","blank","") -> 
B35: 20 | C35: 0 | D35: 285 | E35: 14:08:39 | F35: 14 | V35: =IF(RawData!A35<>"",ROW(RawData!A35),0) -> 35 | W35: =IF(RawData!A35="","blank","") -> 
B36: 21 | C36: 0 | D36: 300 | E36: 14:11:05 | F36: 14 | H36: =IF(ISERROR(MATCH(I38,$Y$3:$Y$8,0)),"NOT VALID SENSOR#", IF(ISERROR(MATCH(I37,$B$16:$B$57,0)),"NOT VALID PROFILE #", IF(NOT(ISERROR(MATCH("NAN",I57:I157,0))),"NO CALIBRATION", IF(NOT(OR(ISNUMBER(SEARCH("%",I56)),ISNUMBER(SEARCH("µ",I56)))),"NOT VALID UNIT", IF(OR(I46>I47,I46<I364,I47>I365),"INVALID LIMITS", ""))))) ->  | K36: =IF(ISERROR(MATCH(L38,$Y$3:$Y$8,0)),"NOT VALID SENSOR#", IF(ISERROR(MATCH(L37,$B$16:$B$57,0)),"NOT VALID PROFILE #", IF(NOT(ISERROR(MATCH("NAN",L57:L157,0))),"NO CALIBRATION", IF(NOT(OR(ISNUMBER(SEARCH("%",L56)),ISNUMBER(SEARCH("µ",L56)))),"NOT VALID UNIT", IF(OR(L46>L47,L46<L364,L47>L365),"INVALID LIMITS", ""))))) ->  | N36: =IF(ISERROR(MATCH(O38,$Y$3:$Y$8,0)),"NOT VALID SENSOR#", IF(ISERROR(MATCH(O37,$B$16:$B$57,0)),"NOT VALID PROFILE #", IF(NOT(ISERROR(MATCH("NAN",O57:O157,0))),"NO CALIBRATION", IF(NOT(OR(ISNUMBER(SEARCH("%",O56)),ISNUMBER(SEARCH("µ",O56)))),"NOT VALID UNIT", IF(OR(O46>O47,O46<O364,O47>O365),"INVALID LIMITS", ""))))) ->  | Q36: =IF(ISERROR(MATCH(R38,$Y$3:$Y$8,0)),"NOT VALID SENSOR#", IF(ISERROR(MATCH(R37,$B$16:$B$57,0)),"NOT VALID PROFILE #", IF(NOT(ISERROR(MATCH("NAN",R57:R157,0))),"NO CALIBRATION", IF(NOT(OR(ISNUMBER(SEARCH("%",R56)),ISNUMBER(SEARCH("µ",R56)))),"NOT VALID UNIT", IF(OR(R46>R47,R46<R364,R47>R365),"INVALID LIMITS", ""))))) ->  | V36: =IF(RawData!A36<>"",ROW(RawData!A36),0) -> 36 | W36: =IF(RawData!A36="","blank","") -> 
H37: Profile | I37: 15 | K37: Profile | L37: 16 | N37: Profile | O37: 17 | Q37: Profile | R37: 18 | V37: =IF(RawData!A37<>"",ROW(RawData!A37),0) -> 37 | W37: =IF(RawData!A37="","blank","") -> 
H38: Data channel | I38: 2 | K38: Data channel | L38: 2 | N38: Data channel | O38: 2 | Q38: Data channel | R38: 2 | V38: =IF(RawData!A38<>"",ROW(RawData!A38),0) -> 38 | W38: =IF(RawData!A38="","blank","") -> 
H39: Sensor label | I39: =VLOOKUP(I38,$Y$3:$AA$8,3,0) -> Sensor B | K39: Sensor label | L39: =VLOOKUP(L38,$Y$3:$AA$8,3,0) -> Sensor B | N39: Sensor label | O39: =VLOOKUP(O38,$Y$3:$AA$8,3,0) -> Sensor B | Q39: Sensor label | R39: =VLOOKUP(R38,$Y$3:$AA$8,3,0) -> Sensor B | V39: =IF(RawData!A39<>"",ROW(RawData!A39),0) -> 39 | W39: =IF(RawData!A39="","blank","") -> 
H40: New comment | K40: New comment | N40: New comment | Q40: New comment | V40: =IF(RawData!A40<>"",ROW(RawData!A40),0) -> 40 | W40: =IF(RawData!A40="","blank","") -> 
H41: Label | I41: =IF(LEN(I40)>=1,I40,IF(LEN(INDIRECT(ADDRESS(I37+ROW($B$15),3)))>1,INDIRECT(ADDRESS(I37+ROW($B$15),3)),IF(OR(ISERROR(I39),ISERROR(VLOOKUP(I37,$B$16:$B$57,1,0))),"-",I39&", profile "&I37))) -> Sensor B, profile 15 | K41: Label | L41: =IF(LEN(L40)>=1,L40,IF(LEN(INDIRECT(ADDRESS(L37+ROW($B$15),3)))>1,INDIRECT(ADDRESS(L37+ROW($B$15),3)),IF(OR(ISERROR(L39),ISERROR(VLOOKUP(L37,$B$16:$B$57,1,0))),"-",L39&", profile "&L37))) -> Sensor B, profile 16 | N41: Label | O41: =IF(LEN(O40)>=1,O40,IF(LEN(INDIRECT(ADDRESS(O37+ROW($B$15),3)))>1,INDIRECT(ADDRESS(O37+ROW($B$15),3)),IF(OR(ISERROR(O39),ISERROR(VLOOKUP(O37,$B$16:$B$57,1,0))),"-",O39&", profile "&O37))) -> Sensor B, profile 17 | Q41: Label | R41: =IF(LEN(R40)>=1,R40,IF(LEN(INDIRECT(ADDRESS(R37+ROW($B$15),3)))>1,INDIRECT(ADDRESS(R37+ROW($B$15),3)),IF(OR(ISERROR(R39),ISERROR(VLOOKUP(R37,$B$16:$B$57,1,0))),"-",R39&", profile "&R37))) -> Sensor B, profile 18 | V41: =IF(RawData!A41<>"",ROW(RawData!A41),0) -> 41 | W41: =IF(RawData!A41="","blank","") -> 
H42: Time | I42: =INDIRECT(ADDRESS(I37+ROW($B$15),5)) -> 13:50:06 | K42: Time | L42: =INDIRECT(ADDRESS(L37+ROW($B$15),5)) -> 13:56:39 | N42: Time | O42: =INDIRECT(ADDRESS(O37+ROW($B$15),5)) -> 13:59:43 | Q42: Time | R42: =INDIRECT(ADDRESS(R37+ROW($B$15),5)) -> 14:03:03 | V42: =IF(RawData!A42<>"",ROW(RawData!A42),0) -> 42 | W42: =IF(RawData!A42="","blank","") -> 
H43: Nr of points | I43: =IF(I37>42,NA(),INDIRECT(ADDRESS(I37+ROW($B$15),6))) -> 14 | K43: Nr of points | L43: =IF(L37>42,NA(),INDIRECT(ADDRESS(L37+ROW($B$15),6))) -> 14 | N43: Nr of points | O43: =IF(O37>42,NA(),INDIRECT(ADDRESS(O37+ROW($B$15),6))) -> 14 | Q43: Nr of points | R43: =IF(R37>42,NA(),INDIRECT(ADDRESS(R37+ROW($B$15),6))) -> 14 | V43: =IF(RawData!A43<>"",ROW(RawData!A43),0) -> 43 | W43: =IF(RawData!A43="","blank","") -> 
H44: start | I44: =IF(I37>42,NA(),INDIRECT(ADDRESS(I37+ROW($B$15),4))) -> 210 | K44: start | L44: =IF(L37>42,NA(),INDIRECT(ADDRESS(L37+ROW($B$15),4))) -> 225 | N44: start | O44: =IF(O37>42,NA(),INDIRECT(ADDRESS(O37+ROW($B$15),4))) -> 240 | Q44: start | R44: =IF(R37>42,NA(),INDIRECT(ADDRESS(R37+ROW($B$15),4))) -> 255 | V44: =IF(RawData!A44<>"",ROW(RawData!A44),0) -> 44 | W44: =IF(RawData!A44="","blank","") -> 
H45: linear length factor | I45: 0.2 | K45: linear length factor | L45: 0.2 | N45: linear length factor | O45: 0.2 | Q45: linear length factor | R45: 0.2 | V45: =IF(RawData!A45<>"",ROW(RawData!A45),0) -> 45 | W45: =IF(RawData!A45="","blank","") -> 
H46: Upper limit | I46: 0 | K46: Upper limit | L46: 0 | N46: Upper limit | O46: 0 | Q46: Upper limit | R46: 0 | V46: =IF(RawData!A46<>"",ROW(RawData!A46),0) -> 46 | W46: =IF(RawData!A46="","blank","") -> 
H47: Lower limit | I47: 2000 | K47: Lower limit | L47: 2000 | N47: Lower limit | O47: 2000 | Q47: Lower limit | R47: 2000 | V47: =IF(RawData!A47<>"",ROW(RawData!A47),0) -> 0 | W47: =IF(RawData!A47="","blank","") -> blank
V48: =IF(RawData!A48<>"",ROW(RawData!A48),0) -> 48 | W48: =IF(RawData!A48="","blank","") -> 
H49: Slope [%/µm] | I49: =IF(ISNUMBER(SEARCH("%",I56)),SLOPE(I263:I363,H263:H363),IF(ISNUMBER(SEARCH("µ",I56)),SLOPE(I263:I363,H263:H363)*Parameters!$F$3/Parameters!$F$4,"unknown units")) -> -0.0004920454545 | K49: Slope [%/µm] | L49: =IF(ISNUMBER(SEARCH("%",L56)),SLOPE(L263:L363,K263:K363),IF(ISNUMBER(SEARCH("µ",L56)),SLOPE(L263:L363,K263:K363)*Parameters!$F$3/Parameters!$F$4,"unknown units")) -> -0.0003576818182 | N49: Slope [%/µm] | O49: =IF(ISNUMBER(SEARCH("%",O56)),SLOPE(O263:O363,N263:N363),IF(ISNUMBER(SEARCH("µ",O56)),SLOPE(O263:O363,N263:N363)*Parameters!$F$3/Parameters!$F$4,"unknown units")) -> -0.002187363636 | Q49: Slope [%/µm] | R49: =IF(ISNUMBER(SEARCH("%",R56)),SLOPE(R263:R363,Q263:Q363),IF(ISNUMBER(SEARCH("µ",R56)),SLOPE(R263:R363,Q263:Q363)*Parameters!$F$3/Parameters!$F$4,"unknown units")) -> -0.001137727273 | V49: =IF(RawData!A49<>"",ROW(RawData!A49),0) -> 49 | W49: =IF(RawData!A49="","blank","") -> 
H50: Slope [µM/µm] | I50: =IF(ISNUMBER(SEARCH("%",I56)),SLOPE(I263:I363,H263:H363)*Parameters!$F$4/Parameters!$F$3,IF(ISNUMBER(SEARCH("µ",I56)),SLOPE(I263:I363,H263:H363),"unknown units")) -> -0.004686147186 | K50: Slope [µM/µm] | L50: =IF(ISNUMBER(SEARCH("%",L56)),SLOPE(L263:L363,K263:K363)*Parameters!$F$4/Parameters!$F$3,IF(ISNUMBER(SEARCH("µ",L56)),SLOPE(L263:L363,K263:K363),"unknown units")) -> -0.003406493506 | N50: Slope [µM/µm] | O50: =IF(ISNUMBER(SEARCH("%",O56)),SLOPE(O263:O363,N263:N363)*Parameters!$F$4/Parameters!$F$3,IF(ISNUMBER(SEARCH("µ",O56)),SLOPE(O263:O363,N263:N363),"unknown units")) -> -0.02083203463 | Q50: Slope [µM/µm] | R50: =IF(ISNUMBER(SEARCH("%",R56)),SLOPE(R263:R363,Q263:Q363)*Parameters!$F$4/Parameters!$F$3,IF(ISNUMBER(SEARCH("µ",R56)),SLOPE(R263:R363,Q263:Q363),"unknown units")) -> -0.01083549784 | V50: =IF(RawData!A50<>"",ROW(RawData!A50),0) -> 50 | W50: =IF(RawData!A50="","blank","") -> 
H51: Rate [µmol/s/well] | I51: =-I50*Parameters!$F$6*Parameters!$F$8*10 -> 5.735265572e-09 | K51: Rate [µmol/s/well] | L51: =-L50*Parameters!$F$6*Parameters!$F$8*10 -> 4.169127463e-09 | N51: Rate [µmol/s/well] | O51: =-O50*Parameters!$F$6*Parameters!$F$8*10 -> 2.549583833e-08 | Q51: Rate [µmol/s/well] | R51: =-R50*Parameters!$F$6*Parameters!$F$8*10 -> 1.326131153e-08 | V51: =IF(RawData!A51<>"",ROW(RawData!A51),0) -> 51 | W51: =IF(RawData!A51="","blank","") -> 
H52: Rate [nl/hr/well] | I52: =I51*Parameters!$F$5*1000*3600 -> 0.4624918158 | K52: Rate [nl/hr/well] | L52: =L51*Parameters!$F$5*1000*3600 -> 0.3361984386 | N52: Rate [nl/hr/well] | O52: =O51*Parameters!$F$5*1000*3600 -> 2.055984403 | Q52: Rate [nl/hr/well] | R52: =R51*Parameters!$F$5*1000*3600 -> 1.069392162 | V52: =IF(RawData!A52<>"",ROW(RawData!A52),0) -> 52 | W52: =IF(RawData!A52="","blank","") -> 
H53: Rate [nmol/hr/cm2] | I53: =-I50*Parameters!$F$6*1*10*1000*3600 -> 5.685233766 | K53: Rate [nmol/hr/cm2] | L53: =-L50*Parameters!$F$6*1*10*1000*3600 -> 4.132757922 | N53: Rate [nmol/hr/cm2] | O53: =-O50*Parameters!$F$6*1*10*1000*3600 -> 25.27342442 | Q53: Rate [nmol/hr/cm2] | R53: =-R50*Parameters!$F$6*1*10*1000*3600 -> 13.14562597 | V53: =IF(RawData!A53<>"",ROW(RawData!A53),0) -> 53 | W53: =IF(RawData!A53="","blank","") -> 
V54: =IF(RawData!A54<>"",ROW(RawData!A54),0) -> 54 | W54: =IF(RawData!A54="","blank","") -> 
H55: =I41&IF(I41="-",""," measured") -> Sensor B, profile 15 measured | K55: =L41&IF(L41="-",""," measured") -> Sensor B, profile 16 measured | N55: =O41&IF(O41="-",""," measured") -> Sensor B, profile 17 measured | Q55: =R41&IF(R41="-",""," measured") -> Sensor B, profile 18 measured | V55: =IF(RawData!A55<>"",ROW(RawData!A55),0) -> 55 | W55: =IF(RawData!A55="","blank","") -> 
H56: =INDIRECT("RawData!"&ADDRESS(2,2+$X$15+$Y$15+(4+$X$15+$Y$15)*(I38-1))) -> Depth [µm] | I56: =INDIRECT("RawData!"&ADDRESS(2,3+$X$15+$Y$15+(4+$X$15+$Y$15)*(I38-1))) -> Oxygen [%] | K56: =INDIRECT("RawData!"&ADDRESS(2,2+$X$15+$Y$15+(4+$X$15+$Y$15)*(L38-1))) -> Depth [µm] | L56: =INDIRECT("RawData!"&ADDRESS(2,3+$X$15+$Y$15+(4+$X$15+$Y$15)*(L38-1))) -> Oxygen [%] | N56: =INDIRECT("RawData!"&ADDRESS(2,2+$X$15+$Y$15+(4+$X$15+$Y$15)*(O38-1))) -> Depth [µm] | O56: =INDIRECT("RawData!"&ADDRESS(2,3+$X$15+$Y$15+(4+$X$15+$Y$15)*(O38-1))) -> Oxygen [%] | Q56: =INDIRECT("RawData!"&ADDRESS(2,2+$X$15+$Y$15+(4+$X$15+$Y$15)*(R38-1))) -> Depth [µm] | R56: =INDIRECT("RawData!"&ADDRESS(2,3+$X$15+$Y$15+(4+$X$15+$Y$15)*(R38-1))) -> Oxygen [%] | V56: =IF(RawData!A56<>"",ROW(RawData!A56),0) -> 56 | W56: =IF(RawData!A56="","blank","") -> 
H57: =IF(ROW()>I$43+ROW($H$56),"",INDIRECT("RawData!"&ADDRESS(I$44+ROW()-ROW($H$56)-1,2+$X$15+$Y$15+(4+$X$15+$Y$15)*(I$38-1)))) -> -600 | I57: =IF(ROW()>I$43+ROW($H$56),NA(),INDIRECT("RawData!"&ADDRESS(I$44+ROW()-ROW($H$56)-1,3+$X$15+$Y$15+(4+$X$15+$Y$15)*(I$38-1)))) -> 21.097 | K57: =IF(ROW()>L$43+ROW($H$56),"",INDIRECT("RawData!"&ADDRESS(L$44+ROW()-ROW($H$56)-1,2+$X$15+$Y$15+(4+$X$15+$Y$15)*(L$38-1)))) -> -600 | L57: =IF(ROW()>L$43+ROW($H$56),NA(),INDIRECT("RawData!"&ADDRESS(L$44+ROW()-ROW($H$56)-1,3+$X$15+$Y$15+(4+$X$15+$Y$15)*(L$38-1)))) -> 21.01 | N57: =IF(ROW()>O$43+ROW($H$56),"",INDIRECT("RawData!"&ADDRESS(O$44+ROW()-ROW($H$56)-1,2+$X$15+$Y$15+(4+$X$15+$Y$15)*(O$38-1)))) -> -600 | O57: =IF(ROW()>O$43+ROW($H$56),NA(),INDIRECT("RawData!"&ADDRESS(O$44+ROW()-ROW($H$56)-1,3+$X$15+$Y$15+(4+$X$15+$Y$15)*(O$38-1)))) -> 21.092 | Q57: =IF(ROW()>R$43+ROW($H$56),"",INDIRECT("RawData!"&ADDRESS(R$44+ROW()-ROW($H$56)-1,2+$X$15+$Y$15+(4+$X$15+$Y$15)*(R$38-1)))) -> -600 | R57: =IF(ROW()>R$43+ROW($H$56),NA(),INDIRECT("RawData!"&ADDRESS(R$44+ROW()-ROW($H$56)-1,3+$X$15+$Y$15+(4+$X$15+$Y$15)*(R$38-1)))) -> 21.1 | V57: =IF(RawData!A57<>"",ROW(RawData!A57),0) -> 57 | W57: =IF(RawData!A57="","blank","") -> 
F58: =IF(B58=$C$7,$V$3-D58+1,IF(#REF!="","",#REF!-D58-$Y$11+1)) ->  | H58: -400 | I58: 21.087 | K58: -400 | L58: 21.026 | N58: -400 | O58: 21.013 | Q58: -400 | R58: 21.076 | V58: =IF(RawData!A58<>"",ROW(RawData!A58),0) -> 58 | W58: =IF(RawData!A58="","blank","") -> 
H59: -200 | I59: 21.085 | K59: -200 | L59: 20.995 | N59: -200 | O59: 20.742 | Q59: -200 | R59: 21.006 | V59: =IF(RawData!A59<>"",ROW(RawData!A59),0) -> 59 | W59: =IF(RawData!A59="","blank","") -> 
H60: 0 | I60: 21.003 | K60: 0 | L60: 20.922 | N60: 0 | O60: 20.365 | Q60: 0 | R60: 20.855 | V60: =IF(RawData!A60<>"",ROW(RawData!A60),0) -> 60 | W60: =IF(RawData!A60="","blank","") -> 
H61: 200 | I61: 20.914 | K61: 200 | L61: 20.868 | N61: 200 | O61: 19.964 | Q61: 200 | R61: 20.617 | V61: =IF(RawData!A61<>"",ROW(RawData!A61),0) -> 61 | W61: =IF(RawData!A61="","blank","") -> 
H62: 400 | I62: 20.752 | K62: 400 | L62: 20.771 | N62: 400 | O62: 19.565 | Q62: 400 | R62: 20.412 | V62: =IF(RawData!A62<>"",ROW(RawData!A62),0) -> 0 | W62: =IF(RawData!A62="","blank","") -> blank
H63: 600 | I63: 20.657 | K63: 600 | L63: 20.701 | N63: 600 | O63: 19.135 | Q63: 600 | R63: 20.207 | V63: =IF(RawData!A63<>"",ROW(RawData!A63),0) -> 63 | W63: =IF(RawData!A63="","blank","") -> 
H64: 800 | I64: 20.61 | K64: 800 | L64: 20.647 | N64: 800 | O64: 18.708 | Q64: 800 | R64: 19.969 | V64: =IF(RawData!A64<>"",ROW(RawData!A64),0) -> 64 | W64: =IF(RawData!A64="","blank","") -> 
H65: 1000 | I65: 20.501 | K65: 1000 | L65: 20.569 | N65: 1000 | O65: 18.244 | Q65: 1000 | R65: 19.734 | V65: =IF(RawData!A65<>"",ROW(RawData!A65),0) -> 65 | W65: =IF(RawData!A65="","blank","") -> 
H66: 1200 | I66: 20.352 | K66: 1200 | L66: 20.479 | N66: 1200 | O66: 17.815 | Q66: 1200 | R66: 19.48 | V66: =IF(RawData!A66<>"",ROW(RawData!A66),0) -> 66 | W66: =IF(RawData!A66="","blank","") -> 
H67: 1400 | I67: 20.265 | K67: 1400 | L67: 20.425 | N67: 1400 | O67: 17.376 | Q67: 1400 | R67: 19.286 | V67: =IF(RawData!A67<>"",ROW(RawData!A67),0) -> 67 | W67: =IF(RawData!A67="","blank","") -> 
H68: 1600 | I68: 20.205 | K68: 1600 | L68: 20.347 | N68: 1600 | O68: 16.925 | Q68: 1600 | R68: 19.05 | V68: =IF(RawData!A68<>"",ROW(RawData!A68),0) -> 68 | W68: =IF(RawData!A68="","blank","") -> 
H69: 1800 | I69: 20.116 | K69: 1800 | L69: 20.27 | N69: 1800 | O69: 16.475 | Q69: 1800 | R69: 18.825 | V69: =IF(RawData!A69<>"",ROW(RawData!A69),0) -> 69 | W69: =IF(RawData!A69="","blank","") -> 
H70: 2000 | I70: 20.013 | K70: 2000 | L70: 20.225 | N70: 2000 | O70: 15.998 | Q70: 2000 | R70: 18.566 | V70: =IF(RawData!A70<>"",ROW(RawData!A70),0) -> 70 | W70: =IF(RawData!A70="","blank","") -> 
V71: =IF(RawData!A71<>"",ROW(RawData!A71),0) -> 71 | W71: =IF(RawData!A71="","blank","") -> 
V72: =IF(RawData!A72<>"",ROW(RawData!A72),0) -> 72 | W72: =IF(RawData!A72="","blank","") -> 
V73: =IF(RawData!A73<>"",ROW(RawData!A73),0) -> 73 | W73: =IF(RawData!A73="","blank","") -> 
V74: =IF(RawData!A74<>"",ROW(RawData!A74),0) -> 0 | W74: =IF(RawData!A74="","blank","") -> blank
V75: =IF(RawData!A75<>"",ROW(RawData!A75),0) -> 75 | W75: =IF(RawData!A75="","blank","") -> 
V76: =IF(RawData!A76<>"",ROW(RawData!A76),0) -> 76 | W76: =IF(RawData!A76="","blank","") -> 
V77: =IF(RawData!A77<>"",ROW(RawData!A77),0) -> 77 | W77: =IF(RawData!A77="","blank","") -> 
V78: =IF(RawData!A78<>"",ROW(RawData!A78),0) -> 78 | W78: =IF(RawData!A78="","blank","") -> 
V79: =IF(RawData!A79<>"",ROW(RawData!A79),0) -> 79 | W79: =IF(RawData!A79="","blank","") -> 
V80: =IF(RawData!A80<>"",ROW(RawData!A80),0) -> 80 | W80: =IF(RawData!A80="","blank","") -> 
V81: =IF(RawData!A81<>"",ROW(RawData!A81),0) -> 81 | W81: =IF(RawData!A81="","blank","") -> 
V82: =IF(RawData!A82<>"",ROW(RawData!A82),0) -> 82 | W82: =IF(RawData!A82="","blank","") -> 
V83: =IF(RawData!A83<>"",ROW(RawData!A83),0) -> 83 | W83: =IF(RawData!A83="","blank","") -> 
V84: =IF(RawData!A84<>"",ROW(RawData!A84),0) -> 84 | W84: =IF(RawData!A84="","blank","") -> 
V85: =IF(RawData!A85<>"",ROW(RawData!A85),0) -> 85 | W85: =IF(RawData!A85="","blank","") -> 
V86: =IF(RawData!A86<>"",ROW(RawData!A86),0) -> 86 | W86: =IF(RawData!A86="","blank","") -> 
V87: =IF(RawData!A87<>"",ROW(RawData!A87),0) -> 87 | W87: =IF(RawData!A87="","blank","") -> 
V88: =IF(RawData!A88<>"",ROW(RawData!A88),0) -> 88 | W88: =IF(RawData!A88="","blank","") -> 
H89: =IF(ROW()>I$43+ROW($H$56),"",INDIRECT("RawData!"&ADDRESS(I$44+ROW()-ROW($H$56)-1,2+$X$15+$Y$15+(4+$X$15+$Y$15)*(I$38-1)))) ->  | I89: =IF(ROW()>I$43+ROW($H$56),NA(),INDIRECT("RawData!"&ADDRESS(I$44+ROW()-ROW($H$56)-1,3+$X$15+$Y$15+(4+$X$15+$Y$15)*(I$38-1)))) ->  | K89: =IF(ROW()>L$43+ROW($H$56),"",INDIRECT("RawData!"&ADDRESS(L$44+ROW()-ROW($H$56)-1,2+$X$15+$Y$15+(4+$X$15+$Y$15)*(L$38-1)))) ->  | L89: =IF(ROW()>L$43+ROW($H$56),NA(),INDIRECT("RawData!"&ADDRESS(L$44+ROW()-ROW($H$56)-1,3+$X$15+$Y$15+(4+$X$15+$Y$15)*(L$38-1)))) ->  | N89: =IF(ROW()>O$43+ROW($H$56),"",INDIRECT("RawData!"&ADDRESS(O$44+ROW()-ROW($H$56)-1,2+$X$15+$Y$15+(4+$X$15+$Y$15)*(O$38-1)))) ->  | O89: =IF(ROW()>O$43+ROW($H$56),NA(),INDIRECT("RawData!"&ADDRESS(O$44+ROW()-ROW($H$56)-1,3+$X$15+$Y$15+(4+$X$15+$Y$15)*(O$38-1)))) ->  | Q89: =IF(ROW()>R$43+ROW($H$56),"",INDIRECT("RawData!"&ADDRESS(R$44+ROW()-ROW($H$56)-1,2+$X$15+$Y$15+(4+$X$15+$Y$15)*(R$38-1)))) ->  | R89: =IF(ROW()>R$43+ROW($H$56),NA(),INDIRECT("RawData!"&ADDRESS(R$44+ROW()-ROW($H$56)-1,3+$X$15+$Y$15+(4+$X$15+$Y$15)*(R$38-1)))) ->  | V89: =IF(RawData!A89<>"",ROW(RawData!A89),0) -> 0 | W89: =IF(RawData!A89="","blank","") -> blank
V90: =IF(RawData!A90<>"",ROW(RawData!A90),0) -> 90 | W90: =IF(RawData!A90="","blank","") -> 
V91: =IF(RawData!A91<>"",ROW(RawData!A91),0) -> 91 | W91: =IF(RawData!A91="","blank","") -> 
V92: =IF(RawData!A92<>"",ROW(RawData!A92),0) -> 92 | W92: =IF(RawData!A92="","blank","") -> 
V93: =IF(RawData!A93<>"",ROW(RawData!A93),0) -> 93 | W93: =IF(RawData!A93="","blank","") -> 
V94: =IF(RawData!A94<>"",ROW(RawData!A94),0) -> 94 | W94: =IF(RawData!A94="","blank","") -> 
V95: =IF(RawData!A95<>"",ROW(RawData!A95),0) -> 95 | W95: =IF(RawData!A95="","blank","") -> 
V96: =IF(RawData!A96<>"",ROW(RawData!A96),0) -> 96 | W96: =IF(RawData!A96="","blank","") -> 
V97: =IF(RawData!A97<>"",ROW(RawData!A97),0) -> 97 | W97: =IF(RawData!A97="","blank","") -> 
V98: =IF(RawData!A98<>"",ROW(RawData!A98),0) -> 98 | W98: =IF(RawData!A98="","blank","") -> 
V99: =IF(RawData!A99<>"",ROW(RawData!A99),0) -> 99 | W99: =IF(RawData!A99="","blank","") -> 
V100: =IF(RawData!A100<>"",ROW(RawData!A100),0) -> 100 | W100: =IF(RawData!A100="","blank","") -> 
V101: =IF(RawData!A101<>"",ROW(RawData!A101),0) -> 101 | W101: =IF(RawData!A101="","blank","") -> 
V102: =IF(RawData!A102<>"",ROW(RawData!A102),0) -> 102 | W102: =IF(RawData!A102="","blank","") -> 
V103: =IF(RawData!A103<>"",ROW(RawData!A103),0) -> 103 | W103: =IF(RawData!A103="","blank","") -> 
V104: =IF(RawData!A104<>"",ROW(RawData!A104),0) -> 0 | W104: =IF(RawData!A104="","blank","") -> blank
V105: =IF(RawData!A105<>"",ROW(RawData!A105),0) -> 105 | W105: =IF(RawData!A105="","blank","") -> 
V106: =IF(RawData!A106<>"",ROW(RawData!A106),0) -> 106 | W106: =IF(RawData!A106="","blank","") -> 
V107: =IF(RawData!A107<>"",ROW(RawData!A107),0) -> 107 | W107: =IF(RawData!A107="","blank","") -> 
V108: =IF(RawData!A108<>"",ROW(RawData!A108),0) -> 108 | W108: =IF(RawData!A108="","blank","") -> 
V109: =IF(RawData!A109<>"",ROW(RawData!A109),0) -> 109 | W109: =IF(RawData!A109="","blank","") -> 
V110: =IF(RawData!A110<>"",ROW(RawData!A110),0) -> 110 | W110: =IF(RawData!A110="","blank","") -> 
V111: =IF(RawData!A111<>"",ROW(RawData!A111),0) -> 111 | W111: =IF(RawData!A111="","blank","") -> 
V112: =IF(RawData!A112<>"",ROW(RawData!A112),0) -> 112 | W112: =IF(RawData!A112="","blank","") -> 
V113: =IF(RawData!A113<>"",ROW(RawData!A113),0) -> 113 | W113: =IF(RawData!A113="","blank","") -> 
V114: =IF(RawData!A114<>"",ROW(RawData!A114),0) -> 114 | W114: =IF(RawData!A114="","blank","") -> 
V115: =IF(RawData!A115<>"",ROW(RawData!A115),0) -> 115 | W115: =IF(RawData!A115="","blank","") -> 
V116: =IF(RawData!A116<>"",ROW(RawData!A116),0) -> 116 | W116: =IF(RawData!A116="","blank","") -> 
V117: =IF(RawData!A117<>"",ROW(RawData!A117),0) -> 117 | W117: =IF(RawData!A117="","blank","") -> 
V118: =IF(RawData!A118<>"",ROW(RawData!A118),0) -> 118 | W118: =IF(RawData!A118="","blank","") -> 
V119: =IF(RawData!A119<>"",ROW(RawData!A119),0) -> 0 | W119: =IF(RawData!A119="","blank","") -> blank
V120: =IF(RawData!A120<>"",ROW(RawData!A120),0) -> 120 | W120: =IF(RawData!A120="","blank","") -> 
H121: =IF(ROW()>I$43+ROW($H$56),"",INDIRECT("RawData!"&ADDRESS(I$44+ROW()-ROW($H$56)-1,2+$X$15+$Y$15+(4+$X$15+$Y$15)*(I$38-1)))) ->  | I121: =IF(ROW()>I$43+ROW($H$56),NA(),INDIRECT("RawData!"&ADDRESS(I$44+ROW()-ROW($H$56)-1,3+$X$15+$Y$15+(4+$X$15+$Y$15)*(I$38-1)))) ->  | K121: =IF(ROW()>L$43+ROW($H$56),"",INDIRECT("RawData!"&ADDRESS(L$44+ROW()-ROW($H$56)-1,2+$X$15+$Y$15+(4+$X$15+$Y$15)*(L$38-1)))) ->  | L121: =IF(ROW()>L$43+ROW($H$56),NA(),INDIRECT("RawData!"&ADDRESS(L$44+ROW()-ROW($H$56)-1,3+$X$15+$Y$15+(4+$X$15+$Y$15)*(L$38-1)))) ->  | N121: =IF(ROW()>O$43+ROW($H$56),"",INDIRECT("RawData!"&ADDRESS(O$44+ROW()-ROW($H$56)-1,2+$X$15+$Y$15+(4+$X$15+$Y$15)*(O$38-1)))) ->  | O121: =IF(ROW()>O$43+ROW($H$56),NA(),INDIRECT("RawData!"&ADDRESS(O$44+ROW()-ROW($H$56)-1,3+$X$15+$Y$15+(4+$X$15+$Y$15)*(O$38-1)))) ->  | Q121: =IF(ROW()>R$43+ROW($H$56),"",INDIRECT("RawData!"&ADDRESS(R$44+ROW()-ROW($H$56)-1,2+$X$15+$Y$15+(4+$X$15+$Y$15)*(R$38-1)))) ->  | R121: =IF(ROW()>R$43+ROW($H$56),NA(),INDIRECT("RawData!"&ADDRESS(R$44+ROW()-ROW($H$56)-1,3+$X$15+$Y$15+(4+$X$15+$Y$15)*(R$38-1)))) ->  | V121: =IF(RawData!A121<>"",ROW(RawData!A121),0) -> 121 | W121: =IF(RawData!A121="","blank","") -> 
V122: =IF(RawData!A122<>"",ROW(RawData!A122),0) -> 122 | W122: =IF(RawData!A122="","blank","") -> 
V123: =IF(RawData!A123<>"",ROW(RawData!A123),0) -> 123 | W123: =IF(RawData!A123="","blank","") -> 
V124: =IF(RawData!A124<>"",ROW(RawData!A124),0) -> 124 | W124: =IF(RawData!A124="","blank","") -> 
V125: =IF(RawData!A125<>"",ROW(RawData!A125),0) -> 125 | W125: =IF(RawData!A125="","blank","") -> 
V126: =IF(RawData!A126<>"",ROW(RawData!A126),0) -> 126 | W126: =IF(RawData!A126="","blank","") -> 
V127: =IF(RawData!A127<>"",ROW(RawData!A127),0) -> 127 | W127: =IF(RawData!A127="","blank","") -> 
V128: =IF(RawData!A128<>"",ROW(RawData!A128),0) -> 128 | W128: =IF(RawData!A128="","blank","") -> 
V129: =IF(RawData!A129<>"",ROW(RawData!A129),0) -> 129 | W129: =IF(RawData!A129="","blank","") -> 
V130: =IF(RawData!A130<>"",ROW(RawData!A130),0) -> 130 | W130: =IF(RawData!A130="","blank","") -> 
V131: =IF(RawData!A131<>"",ROW(RawData!A131),0) -> 131 | W131: =IF(RawData!A131="","blank","") -> 
V132: =IF(RawData!A132<>"",ROW(RawData!A132),0) -> 132 | W132: =IF(RawData!A132="","blank","") -> 
V133: =IF(RawData!A133<>"",ROW(RawData!A133),0) -> 133 | W133: =IF(RawData!A133="","blank","") -> 
V134: =IF(RawData!A134<>"",ROW(RawData!A134),0) -> 0 | W134: =IF(RawData!A134="","blank","") -> blank
V135: =IF(RawData!A135<>"",ROW(RawData!A135),0) -> 135 | W135: =IF(RawData!A135="","blank","") -> 
V136: =IF(RawData!A136<>"",ROW(RawData!A136),0) -> 136 | W136: =IF(RawData!A136="","blank","") -> 
V137: =IF(RawData!A137<>"",ROW(RawData!A137),0) -> 137 | W137: =IF(RawData!A137="","blank","") -> 
V138: =IF(RawData!A138<>"",ROW(RawData!A138),0) -> 138 | W138: =IF(RawData!A138="","blank","") -> 
V139: =IF(RawData!A139<>"",ROW(RawData!A139),0) -> 139 | W139: =IF(RawData!A139="","blank","") -> 
V140: =IF(RawData!A140<>"",ROW(RawData!A140),0) -> 140 | W140: =IF(RawData!A140="","blank","") -> 
V141: =IF(RawData!A141<>"",ROW(RawData!A141),0) -> 141 | W141: =IF(RawData!A141="","blank","") -> 
V142: =IF(RawData!A142<>"",ROW(RawData!A142),0) -> 142 | W142: =IF(RawData!A142="","blank","") -> 
V143: =IF(RawData!A143<>"",ROW(RawData!A143),0) -> 143 | W143: =IF(RawData!A143="","blank","") -> 
V144: =IF(RawData!A144<>"",ROW(RawData!A144),0) -> 144 | W144: =IF(RawData!A144="","blank","") -> 
V145: =IF(RawData!A145<>"",ROW(RawData!A145),0) -> 145 | W145: =IF(RawData!A145="","blank","") -> 
V146: =IF(RawData!A146<>"",ROW(RawData!A146),0) -> 146 | W146: =IF(RawData!A146="","blank","") -> 
V147: =IF(RawData!A147<>"",ROW(RawData!A147),0) -> 147 | W147: =IF(RawData!A147="","blank","") -> 
V148: =IF(RawData!A148<>"",ROW(RawData!A148),0) -> 148 | W148: =IF(RawData!A148="","blank","") -> 
V149: =IF(RawData!A149<>"",ROW(RawData!A149),0) -> 0 | W149: =IF(RawData!A149="","blank","") -> blank
V150: =IF(RawData!A150<>"",ROW(RawData!A150),0) -> 150 | W150: =IF(RawData!A150="","blank","") -> 
V151: =IF(RawData!A151<>"",ROW(RawData!A151),0) -> 151 | W151: =IF(RawData!A151="","blank","") -> 
V152: =IF(RawData!A152<>"",ROW(RawData!A152),0) -> 152 | W152: =IF(RawData!A152="","blank","") -> 
H153: =IF(ROW()>I$43+ROW($H$56),"",INDIRECT("RawData!"&ADDRESS(I$44+ROW()-ROW($H$56)-1,2+$X$15+$Y$15+(4+$X$15+$Y$15)*(I$38-1)))) ->  | K153: =IF(ROW()>L$43+ROW($H$56),"",INDIRECT("RawData!"&ADDRESS(L$44+ROW()-ROW($H$56)-1,2+$X$15+$Y$15+(4+$X$15+$Y$15)*(L$38-1)))) ->  | N153: =IF(ROW()>O$43+ROW($H$56),"",INDIRECT("RawData!"&ADDRESS(O$44+ROW()-ROW($H$56)-1,2+$X$15+$Y$15+(4+$X$15+$Y$15)*(O$38-1)))) ->  | Q153: =IF(ROW()>R$43+ROW($H$56),"",INDIRECT("RawData!"&ADDRESS(R$44+ROW()-ROW($H$56)-1,2+$X$15+$Y$15+(4+$X$15+$Y$15)*(R$38-1)))) ->  | V153: =IF(RawData!A153<>"",ROW(RawData!A153),0) -> 153 | W153: =IF(RawData!A153="","blank","") -> 
V154: =IF(RawData!A154<>"",ROW(RawData!A154),0) -> 154 | W154: =IF(RawData!A154="","blank","") -> 
V155: =IF(RawData!A155<>"",ROW(RawData!A155),0) -> 155 | W155: =IF(RawData!A155="","blank","") -> 
V156: =IF(RawData!A156<>"",ROW(RawData!A156),0) -> 156 | W156: =IF(RawData!A156="","blank","") -> 
V157: =IF(RawData!A157<>"",ROW(RawData!A157),0) -> 157 | W157: =IF(RawData!A157="","blank","") -> 
H158: =I41&IF(I41="-",""," used") -> Sensor B, profile 15 used | K158: =L41&IF(L41="-",""," used") -> Sensor B, profile 16 used | N158: =O41&IF(O41="-",""," used") -> Sensor B, profile 17 used | Q158: =R41&IF(R41="-",""," used") -> Sensor B, profile 18 used | V158: =IF(RawData!A158<>"",ROW(RawData!A158),0) -> 158 | W158: =IF(RawData!A158="","blank","") -> 
H159: =H56 -> Depth [µm] | I159: =I56 -> Oxygen [%] | K159: =K56 -> Depth [µm] | L159: =L56 -> Oxygen [%] | N159: =N56 -> Depth [µm] | O159: =O56 -> Oxygen [%] | Q159: =Q56 -> Depth [µm] | R159: =R56 -> Oxygen [%] | V159: =IF(RawData!A159<>"",ROW(RawData!A159),0) -> 159 | W159: =IF(RawData!A159="","blank","") -> 
H160: =IF(AND(H57>=I$46,H57<=I$47),H57,NA()) ->  | I160: =IF(AND(H57>=I$46,H57<=I$47),I57,NA()) ->  | K160: =IF(AND(K57>=L$46,K57<=L$47),K57,NA()) ->  | L160: =IF(AND(K57>=L$46,K57<=L$47),L57,NA()) ->  | N160: =IF(AND(N57>=O$46,N57<=O$47),N57,NA()) ->  | O160: =IF(AND(N57>=O$46,N57<=O$47),O57,NA()) ->  | Q160: =IF(AND(Q57>=R$46,Q57<=R$47),Q57,NA()) ->  | R160: =IF(AND(Q57>=R$46,Q57<=R$47),R57,NA()) ->  | V160: =IF(RawData!A160<>"",ROW(RawData!A160),0) -> 160 | W160: =IF(RawData!A160="","blank","") -> 
H161: =IF(AND(H58>=I$46,H58<=I$47),H58,NA()) ->  | I161: =IF(AND(H58>=I$46,H58<=I$47),I58,NA()) ->  | K161: =IF(AND(K58>=L$46,K58<=L$47),K58,NA()) ->  | L161: =IF(AND(K58>=L$46,K58<=L$47),L58,NA()) ->  | N161: =IF(AND(N58>=O$46,N58<=O$47),N58,NA()) ->  | O161: =IF(AND(N58>=O$46,N58<=O$47),O58,NA()) ->  | Q161: =IF(AND(Q58>=R$46,Q58<=R$47),Q58,NA()) ->  | R161: =IF(AND(Q58>=R$46,Q58<=R$47),R58,NA()) ->  | V161: =IF(RawData!A161<>"",ROW(RawData!A161),0) -> 161 | W161: =IF(RawData!A161="","blank","") -> 
V162: =IF(RawData!A162<>"",ROW(RawData!A162),0) -> 162 | W162: =IF(RawData!A162="","blank","") -> 
H163: 0 | I163: 21.003 | K163: 0 | L163: 20.922 | N163: 0 | O163: 20.365 | Q163: 0 | R163: 20.855 | V163: =IF(RawData!A163<>"",ROW(RawData!A163),0) -> 163 | W163: =IF(RawData!A163="","blank","") -> 
H164: 200 | I164: 20.914 | K164: 200 | L164: 20.868 | N164: 200 | O164: 19.964 | Q164: 200 | R164: 20.617 | V164: =IF(RawData!A164<>"",ROW(RawData!A164),0) -> 0 | W164: =IF(RawData!A164="","blank","") -> blank
H165: 400 | I165: 20.752 | K165: 400 | L165: 20.771 | N165: 400 | O165: 19.565 | Q165: 400 | R165: 20.412 | V165: =IF(RawData!A165<>"",ROW(RawData!A165),0) -> 165 | W165: =IF(RawData!A165="","blank","") -> 
H166: 600 | I166: 20.657 | K166: 600 | L166: 20.701 | N166: 600 | O166: 19.135 | Q166: 600 | R166: 20.207 | V166: =IF(RawData!A166<>"",ROW(RawData!A166),0) -> 166 | W166: =IF(RawData!A166="","blank","") -> 
H167: 800 | I167: 20.61 | K167: 800 | L167: 20.647 | N167: 800 | O167: 18.708 | Q167: 800 | R167: 19.969 | V167: =IF(RawData!A167<>"",ROW(RawData!A167),0) -> 167 | W167: =IF(RawData!A167="","blank","") -> 
H168: 1000 | I168: 20.501 | K168: 1000 | L168: 20.569 | N168: 1000 | O168: 18.244 | Q168: 1000 | R168: 19.734 | V168: =IF(RawData!A168<>"",ROW(RawData!A168),0) -> 168 | W168: =IF(RawData!A168="","blank","") -> 
H169: 1200 | I169: 20.352 | K169: 1200 | L169: 20.479 | N169: 1200 | O169: 17.815 | Q169: 1200 | R169: 19.48 | V169: =IF(RawData!A169<>"",ROW(RawData!A169),0) -> 169 | W169: =IF(RawData!A169="","blank","") -> 
H170: 1400 | I170: 20.265 | K170: 1400 | L170: 20.425 | N170: 1400 | O170: 17.376 | Q170: 1400 | R170: 19.286 | V170: =IF(RawData!A170<>"",ROW(RawData!A170),0) -> 170 | W170: =IF(RawData!A170="","blank","") -> 
H171: 1600 | I171: 20.205 | K171: 1600 | L171: 20.347 | N171: 1600 | O171: 16.925 | Q171: 1600 | R171: 19.05 | V171: =IF(RawData!A171<>"",ROW(RawData!A171),0) -> 171 | W171: =IF(RawData!A171="","blank","") -> 
H172: 1800 | I172: 20.116 | K172: 1800 | L172: 20.27 | N172: 1800 | O172: 16.475 | Q172: 1800 | R172: 18.825 | V172: =IF(RawData!A172<>"",ROW(RawData!A172),0) -> 172 | W172: =IF(RawData!A172="","blank","") -> 
H173: 2000 | I173: 20.013 | K173: 2000 | L173: 20.225 | N173: 2000 | O173: 15.998 | Q173: 2000 | R173: 18.566 | V173: =IF(RawData!A173<>"",ROW(RawData!A173),0) -> 173 | W173: =IF(RawData!A173="","blank","") -> 
V174: =IF(RawData!A174<>"",ROW(RawData!A174),0) -> 174 | W174: =IF(RawData!A174="","blank","") -> 
V175: =IF(RawData!A175<>"",ROW(RawData!A175),0) -> 175 | W175: =IF(RawData!A175="","blank","") -> 
V176: =IF(RawData!A176<>"",ROW(RawData!A176),0) -> 176 | W176: =IF(RawData!A176="","blank","") -> 
V177: =IF(RawData!A177<>"",ROW(RawData!A177),0) -> 177 | W177: =IF(RawData!A177="","blank","") -> 
V178: =IF(RawData!A178<>"",ROW(RawData!A178),0) -> 178 | W178: =IF(RawData!A178="","blank","") -> 
V179: =IF(RawData!A179<>"",ROW(RawData!A179),0) -> 0 | W179: =IF(RawData!A179="","blank","") -> blank
V180: =IF(RawData!A180<>"",ROW(RawData!A180),0) -> 180 | W180: =IF(RawData!A180="","blank","") -> 
V181: =IF(RawData!A181<>"",ROW(RawData!A181),0) -> 181 | W181: =IF(RawData!A181="","blank","") -> 
V182: =IF(RawData!A182<>"",ROW(RawData!A182),0) -> 182 | W182: =IF(RawData!A182="","blank","") -> 
V183: =IF(RawData!A183<>"",ROW(RawData!A183),0) -> 183 | W183: =IF(RawData!A183="","blank","") -> 
V184: =IF(RawData!A184<>"",ROW(RawData!A184),0) -> 184 | W184: =IF(RawData!A184="","blank","") -> 
V185: =IF(RawData!A185<>"",ROW(RawData!A185),0) -> 185 | W185: =IF(RawData!A185="","blank","") -> 
V186: =IF(RawData!A186<>"",ROW(RawData!A186),0) -> 186 | W186: =IF(RawData!A186="","blank","") -> 
V187: =IF(RawData!A187<>"",ROW(RawData!A187),0) -> 187 | W187: =IF(RawData!A187="","blank","") -> 
V188: =IF(RawData!A188<>"",ROW(RawData!A188),0) -> 188 | W188: =IF(RawData!A188="","blank","") -> 
V189: =IF(RawData!A189<>"",ROW(RawData!A189),0) -> 189 | W189: =IF(RawData!A189="","blank","") -> 
V190: =IF(RawData!A190<>"",ROW(RawData!A190),0) -> 190 | W190: =IF(RawData!A190="","blank","") -> 
V191: =IF(RawData!A191<>"",ROW(RawData!A191),0) -> 191 | W191: =IF(RawData!A191="","blank","") -> 
V192: =IF(RawData!A192<>"",ROW(RawData!A192),0) -> 192 | W192: =IF(RawData!A192="","blank","") -> 
V193: =IF(RawData!A193<>"",ROW(RawData!A193),0) -> 193 | W193: =IF(RawData!A193="","blank","") -> 
V194: =IF(RawData!A194<>"",ROW(RawData!A194),0) -> 0 | W194: =IF(RawData!A194="","blank","") -> blank
V195: =IF(RawData!A195<>"",ROW(RawData!A195),0) -> 195 | W195: =IF(RawData!A195="","blank","") -> 
V196: =IF(RawData!A196<>"",ROW(RawData!A196),0) -> 196 | W196: =IF(RawData!A196="","blank","") -> 
V197: =IF(RawData!A197<>"",ROW(RawData!A197),0) -> 197 | W197: =IF(RawData!A197="","blank","") -> 
V198: =IF(RawData!A198<>"",ROW(RawData!A198),0) -> 198 | W198: =IF(RawData!A198="","blank","") -> 
V199: =IF(RawData!A199<>"",ROW(RawData!A199),0) -> 199 | W199: =IF(RawData!A199="","blank","") -> 
V200: =IF(RawData!A200<>"",ROW(RawData!A200),0) -> 200 | W200: =IF(RawData!A200="","blank","") -> 
V201: =IF(RawData!A201<>"",ROW(RawData!A201),0) -> 201 | W201: =IF(RawData!A201="","blank","") -> 
... 2049 more rows

Sheet RawData
A1: Sensor A | E1: Sensor B
A2: Time | B2: Depth [µm] | C2: oxygen [%] | D2: oxygen [V] | E2: Time | F2: Depth [µm] | G2: Oxygen [%] | H2: Oxygen [V]
A3: 13:03:53 | B3: -600 | C3: 21.326 | D3: 1.869 | E3: 13:03:53 | F3: -600 | G3: NAN | H3: 0.080705
A4: 13:04:00 | B4: -400 | C4: 21.356 | D4: 1.8716 | E4: 13:04:00 | F4: -400 | G4: NAN | H4: 0.080613
A5: 13:04:05 | B5: -200 | C5: 21.352 | D5: 1.8713 | E5: 13:04:05 | F5: -200 | G5: NAN | H5: 0.080568
A6: 13:04:12 | B6: 0 | C6: 21.382 | D6: 1.8739 | E6: 13:04:12 | F6: 0 | G6: NAN | H6: 0.080674
A7: 13:04:17 | B7: 200 | C7: 21.382 | D7: 1.8739 | E7: 13:04:17 | F7: 200 | G7: NAN | H7: 0.080644
A8: 13:04:23 | B8: 400 | C8: 21.418 | D8: 1.8771 | E8: 13:04:23 | F8: 400 | G8: NAN | H8: 0.080552
A9: 13:04:30 | B9: 600 | C9: 21.432 | D9: 1.8783 | E9: 13:04:30 | F9: 600 | G9: NAN | H9: 0.080797
A10: 13:04:35 | B10: 800 | C10: 21.382 | D10: 1.8739 | E10: 13:04:35 | F10: 800 | G10: NAN | H10: 0.080705
A11: 13:04:41 | B11: 1000 | C11: 21.346 | D11: 1.8708 | E11: 13:04:41 | F11: 1000 | G11: NAN | H11: 0.08072
A12: 13:04:47 | B12: 1200 | C12: 21.35 | D12: 1.8711 | E12: 13:04:47 | F12: 1200 | G12: NAN | H12: 0.080568
A13: 13:04:53 | B13: 1400 | C13: 21.419 | D13: 1.8772 | E13: 13:04:53 | F13: 1400 | G13: NAN | H13: 0.080751
A14: 13:04:59 | B14: 1600 | C14: 21.468 | D14: 1.8814 | E14: 13:04:59 | F14: 1600 | G14: NAN | H14: 0.080644
A15: 13:05:05 | B15: 1800 | C15: 21.537 | D15: 1.8875 | E15: 13:05:05 | F15: 1800 | G15: NAN | H15: 0.080598
A16: 13:05:11 | B16: 2000 | C16: 21.614 | D16: 1.8942 | E16: 13:05:11 | F16: 2000 | G16: NAN | H16: 0.08069
A18: 13:07:22 | B18: -600 | C18: 21.98 | D18: 1.9262 | E18: 13:07:22 | F18: -600 | G18: NAN | H18: 0.080613
A19: 13:07:28 | B19: -400 | C19: 21.931 | D19: 1.922 | E19: 13:07:28 | F19: -400 | G19: NAN | H19: 0.080659
A20: 13:07:34 | B20: -200 | C20: 21.905 | D20: 1.9197 | E20: 13:07:34 | F20: -200 | G20: NAN | H20: 0.080613
A21: 13:07:39 | B21: 0 | C21: 21.896 | D21: 1.9189 | E21: 13:07:39 | F21: 0 | G21: NAN | H21: 0.080659
A22: 13:07:45 | B22: 200 | C22: 21.871 | D22: 1.9167 | E22: 13:07:45 | F22: 200 | G22: NAN | H22: 0.080797
A23: 13:07:51 | B23: 400 | C23: 21.868 | D23: 1.9165 | E23: 13:07:51 | F23: 400 | G23: NAN | H23: 0.080644
A24: 13:07:58 | B24: 600 | C24: 21.603 | D24: 1.8933 | E24: 13:07:58 | F24: 600 | G24: NAN | H24: 0.080735
A25: 13:08:04 | B25: 800 | C25: 20.728 | D25: 1.8167 | E25: 13:08:04 | F25: 800 | G25: NAN | H25: 0.080781
A26: 13:08:11 | B26: 1000 | C26: 20.139 | D26: 1.7652 | E26: 13:08:11 | F26: 1000 | G26: NAN | H26: 0.08072
A27: 13:08:16 | B27: 1200 | C27: 19.595 | D27: 1.7176 | E27: 13:08:16 | F27: 1200 | G27: NAN | H27: 0.080797
A28: 13:08:23 | B28: 1400 | C28: 19.015 | D28: 1.6667 | E28: 13:08:23 | F28: 1400 | G28: NAN | H28: 0.08072
A29: 13:08:29 | B29: 1600 | C29: 18.473 | D29: 1.6194 | E29: 13:08:29 | F29: 1600 | G29: NAN | H29: 0.080735
A30: 13:08:34 | B30: 1800 | C30: 17.857 | D30: 1.5654 | E30: 13:08:34 | F30: 1800 | G30: NAN | H30: 0.080766
A31: 13:08:41 | B31: 2000 | C31: 17.424 | D31: 1.5276 | E31: 13:08:41 | F31: 2000 | G31: NAN | H31: 0.080629
A33: 13:09:23 | B33: -600 | C33: 21.81 | D33: 1.9113 | E33: 13:09:23 | F33: -600 | G33: NAN | H33: 0.080766
A34: 13:09:29 | B34: -400 | C34: 21.797 | D34: 1.9102 | E34: 13:09:29 | F34: -400 | G34: NAN | H34: 0.080781
A35: 13:09:34 | B35: -200 | C35: 21.809 | D35: 1.9113 | E35: 13:09:34 | F35: -200 | G35: NAN | H35: 0.080797
A36: 13:09:41 | B36: 0 | C36: 21.634 | D36: 1.8959 | E36: 13:09:41 | F36: 0 | G36: NAN | H36: 0.080705
A37: 13:09:47 | B37: 200 | C37: 21.038 | D37: 1.8438 | E37: 13:09:47 | F37: 200 | G37: NAN | H37: 0.080644
A38: 13:09:53 | B38: 400 | C38: 20.3 | D38: 1.7792 | E38: 13:09:53 | F38: 400 | G38: NAN | H38: 0.080766
A39: 13:09:59 | B39: 600 | C39: 19.811 | D39: 1.7364 | E39: 13:09:59 | F39: 600 | G39: NAN | H39: 0.080644
A40: 13:10:05 | B40: 800 | C40: 19.097 | D40: 1.6739 | E40: 13:10:05 | F40: 800 | G40: NAN | H40: 0.080781
A41: 13:10:11 | B41: 1000 | C41: 18.567 | D41: 1.6275 | E41: 13:10:11 | F41: 1000 | G41: NAN | H41: 0.080507
A42: 13:10:16 | B42: 1200 | C42: 18.036 | D42: 1.5811 | E42: 13:10:16 | F42: 1200 | G42: NAN | H42: 0.080705
A43: 13:10:23 | B43: 1400 | C43: 17.479 | D43: 1.5324 | E43: 13:10:23 | F43: 1400 | G43: NAN | H43: 0.08072
A44: 13:10:28 | B44: 1600 | C44: 16.956 | D44: 1.4866 | E44: 13:10:28 | F44: 1600 | G44: NAN | H44: 0.080659
A45: 13:10:34 | B45: 1800 | C45: 16.268 | D45: 1.4264 | E45: 13:10:34 | F45: 1800 | G45: NAN | H45: 0.08072
A46: 13:10:40 | B46: 2000 | C46: 15.544 | D46: 1.363 | E46: 13:10:40 | F46: 2000 | G46: NAN | H46: 0.080705
A48: 13:12:29 | B48: -600 | C48: 21.966 | D48: 1.925 | E48: 13:12:29 | F48: -600 | G48: NAN | H48: 0.080705
A49: 13:12:35 | B49: -400 | C49: 21.938 | D49: 1.9226 | E49: 13:12:35 | F49: -400 | G49: NAN | H49: 0.080735
A50: 13:12:41 | B50: -200 | C50: 21.898 | D50: 1.9191 | E50: 13:12:41 | F50: -200 | G50: NAN | H50: 0.080613
A51: 13:12:47 | B51: 0 | C51: 21.777 | D51: 1.9084 | E51: 13:12:47 | F51: 0 | G51: NAN | H51: 0.080583
A52: 13:12:53 | B52: 200 | C52: 21.358 | D52: 1.8718 | E52: 13:12:53 | F52: 200 | G52: NAN | H52: 0.080781
A53: 13:12:59 | B53: 400 | C53: 20.974 | D53: 1.8382 | E53: 13:12:59 | F53: 400 | G53: NAN | H53: 0.080842
A54: 13:13:05 | B54: 600 | C54: 20.612 | D54: 1.8065 | E54: 13:13:05 | F54: 600 | G54: NAN | H54: 0.080781
A55: 13:13:11 | B55: 800 | C55: 20.306 | D55: 1.7797 | E55: 13:13:11 | F55: 800 | G55: NAN | H55: 0.080781
A56: 13:13:16 | B56: 1000 | C56: 19.907 | D56: 1.7448 | E56: 13:13:16 | F56: 1000 | G56: NAN | H56: 0.080735
A57: 13:13:23 | B57: 1200 | C57: 19.579 | D57: 1.7161 | E57: 13:13:23 | F57: 1200 | G57: NAN | H57: 0.080781
A58: 13:13:29 | B58: 1400 | C58: 19.278 | D58: 1.6898 | E58: 13:13:29 | F58: 1400 | G58: NAN | H58: 0.080705
A59: 13:13:34 | B59: 1600 | C59: 18.965 | D59: 1.6624 | E59: 13:13:34 | F59: 1600 | G59: NAN | H59: 0.080781
A60: 13:13:41 | B60: 1800 | C60: 18.672 | D60: 1.6368 | E60: 13:13:41 | F60: 1800 | G60: NAN | H60: 0.080583
A61: 13:13:46 | B61: 2000 | C61: 18.37 | D61: 1.6104 | E61: 13:13:46 | F61: 2000 | G61: NAN | H61: 0.08069
A63: 13:14:53 | B63: -600 | C63: 23.785 | D63: 2.0842 | E63: 13:14:53 | F63: -600 | G63: NAN | H63: 0.08069
A64: 13:14:59 | B64: -400 | C64: 19.875 | D64: 1.742 | E64: 13:14:59 | F64: -400 | G64: NAN | H64: 0.08069
A65: 13:15:05 | B65: -200 | C65: 21.094 | D65: 1.8487 | E65: 13:15:05 | F65: -200 | G65: NAN | H65: 0.080797
A66: 13:15:11 | B66: 0 | C66: 21.629 | D66: 1.8955 | E66: 13:15:11 | F66: 0 | G66: NAN | H66: 0.080812
A67: 13:15:17 | B67: 200 | C67: 21.227 | D67: 1.8603 | E67: 13:15:17 | F67: 200 | G67: NAN | H67: 0.08072
A68: 13:15:23 | B68: 400 | C68: 21.069 | D68: 1.8465 | E68: 13:15:23 | F68: 400 | G68: NAN | H68: 0.080705
A69: 13:15:30 | B69: 600 | C69: 20.805 | D69: 1.8235 | E69: 13:15:30 | F69: 600 | G69: NAN | H69: 0.080552
A70: 13:15:35 | B70: 800 | C70: 20.728 | D70: 1.8167 | E70: 13:15:35 | F70: 800 | G70: NAN | H70: 0.080629
A71: 13:15:41 | B71: 1000 | C71: 20.513 | D71: 1.7978 | E71: 13:15:41 | F71: 1000 | G71: NAN | H71: 0.080613
A72: 13:15:47 | B72: 1200 | C72: 21.359 | D72: 1.8719 | E72: 13:15:47 | F72: 1200 | G72: NAN | H72: 0.080659
A73: 13:15:53 | B73: 1400 | C73: 14.36 | D73: 1.2594 | E73: 13:15:53 | F73: 1400 | G73: NAN | H73: 0.080568
A75: 13:28:24 | B75: -600 | C75: 0.027984 | D75: 0.0052644 | E75: 13:28:24 | F75: -600 | G75: 20.967 | H75: 0.99776
A76: 13:28:31 | B76: -400 | C76: 0.024496 | D76: 0.0049592 | E76: 13:28:31 | F76: -400 | G76: 21.041 | H76: 1.0023
A77: 13:28:37 | B77: -200 | C77: 0.027112 | D77: 0.0051881 | E77: 13:28:37 | F77: -200 | G77: 20.96 | H77: 0.9973
A78: 13:28:42 | B78: 0 | C78: 0.028855 | D78: 0.0053407 | E78: 13:28:42 | F78: 0 | G78: 20.869 | H78: 0.99174
A79: 13:28:49 | B79: 200 | C79: 0.024496 | D79: 0.0049592 | E79: 13:28:49 | F79: 200 | G79: 20.791 | H79: 0.98692
A80: 13:28:55 | B80: 400 | C80: 0.028855 | D80: 0.0053407 | E80: 13:28:55 | F80: 400 | G80: 20.617 | H80: 0.97624
A81: 13:29:01 | B81: 600 | C81: 0.028855 | D81: 0.0053407 | E81: 13:29:01 | F81: 600 | G81: 20.503 | H81: 0.96922
A82: 13:29:08 | B82: 800 | C82: 0.027984 | D82: 0.0052644 | E82: 13:29:08 | F82: 800 | G82: 20.328 | H82: 0.95851
A83: 13:29:13 | B83: 1000 | C83: 0.027112 | D83: 0.0051881 | E83: 13:29:13 | F83: 1000 | G83: 20.145 | H83: 0.94722
A84: 13:29:20 | B84: 1200 | C84: 0.02624 | D84: 0.0051118 | E84: 13:29:20 | F84: 1200 | G84: 19.878 | H84: 0.93086
A85: 13:29:25 | B85: 1400 | C85: 0.027112 | D85: 0.0051881 | E85: 13:29:25 | F85: 1400 | G85: 19.679 | H85: 0.91862
A86: 13:29:32 | B86: 1600 | C86: 0.027984 | D86: 0.0052644 | E86: 13:29:32 | F86: 1600 | G86: 19.461 | H86: 0.9052
A87: 13:29:37 | B87: 1800 | C87: 0.02624 | D87: 0.0051118 | E87: 13:29:37 | F87: 1800 | G87: 19.243 | H87: 0.8918
A88: 13:29:44 | B88: 2000 | C88: 0.028855 | D88: 0.0053407 | E88: 13:29:44 | F88: 2000 | G88: 19.041 | H88: 0.87938
A90: 13:31:31 | B90: -600 | C90: 0.02624 | D90: 0.0051118 | E90: 13:31:31 | F90: -600 | G90: 21.176 | H90: 1.0106
A91: 13:31:37 | B91: -400 | C91: 0.028855 | D91: 0.0053407 | E91: 13:31:37 | F91: -400 | G91: 21.132 | H91: 1.0079
A92: 13:31:43 | B92: -200 | C92: 0.029727 | D92: 0.005417 | E92: 13:31:43 | F92: -200 | G92: 21.099 | H92: 1.0059
A93: 13:31:49 | B93: 0 | C93: 0.02624 | D93: 0.0051118 | E93: 13:31:49 | F93: 0 | G93: 21.073 | H93: 1.0043
A94: 13:31:55 | B94: 200 | C94: 0.029727 | D94: 0.005417 | E94: 13:31:55 | F94: 200 | G94: 20.96 | H94: 0.9973
A95: 13:32:01 | B95: 400 | C95: 0.027984 | D95: 0.0052644 | E95: 13:32:01 | F95: 400 | G95: 20.909 | H95: 0.99419
A96: 13:32:07 | B96: 600 | C96: 0.027112 | D96: 0.0051881 | E96: 13:32:07 | F96: 600 | G96: 20.803 | H96: 0.98766
A97: 13:32:13 | B97: 800 | C97: 0.025368 | D97: 0.0050355 | E97: 13:32:13 | F97: 800 | G97: 20.722 | H97: 0.98271
A98: 13:32:20 | B98: 1000 | C98: 0.028855 | D98: 0.0053407 | E98: 13:32:20 | F98: 1000 | G98: 20.621 | H98: 0.97652
A99: 13:32:25 | B99: 1200 | C99: 0.027112 | D99: 0.0051881 | E99: 13:32:25 | F99: 1200 | G99: 20.547 | H99: 0.97194
A100: 13:32:32 | B100: 1400 | C100: 0.02624 | D100: 0.0051118 | E100: 13:32:32 | F100: 1400 | G100: 20.452 | H100: 0.96611
A101: 13:32:38 | B101: 1600 | C101: 0.022752 | D101: 0.0048066 | E101: 13:32:38 | F101: 1600 | G101: 20.339 | H101: 0.95915
A102: 13:32:43 | B102: 1800 | C102: 0.027984 | D102: 0.0052644 | E102: 13:32:43 | F102: 1800 | G102: 20.237 | H102: 0.95286
A103: 13:32:50 | B103: 2000 | C103: 0.024496 | D103: 0.0049592 | E103: 13:32:50 | F103: 2000 | G103: 20.082 | H103: 0.94334
A105: 13:33:54 | B105: -600 | C105: 0.02624 | D105: 0.0051118 | E105: 13:33:54 | F105: -600 | G105: 21.212 | H105: 1.0128
A106: 13:34:01 | B106: -400 | C106: 0.02624 | D106: 0.0051118 | E106: 13:34:01 | F106: -400 | G106: 21.189 | H106: 1.0114
A107: 13:34:06 | B107: -200 | C107: 0.02624 | D107: 0.0051118 | E107: 13:34:06 | F107: -200 | G107: 21.137 | H107: 1.0082
A108: 13:34:12 | B108: 0 | C108: 0.022752 | D108: 0.0048066 | E108: 13:34:12 | F108: 0 | G108: 21.014 | H108: 1.0007
A109: 13:34:18 | B109: 200 | C109: 0.029727 | D109: 0.005417 | E109: 13:34:18 | F109: 200 | G109: 20.824 | H109: 0.98897
A110: 13:34:24 | B110: 400 | C110: 0.030599 | D110: 0.0054932 | E110: 13:34:24 | F110: 400 | G110: 20.628 | H110: 0.97694
A111: 13:34:31 | B111: 600 | C111: 0.029727 | D111: 0.005417 | E111: 13:34:31 | F111: 600 | G111: 20.495 | H111: 0.96873
A112: 13:34:37 | B112: 800 | C112: 0.025368 | D112: 0.0050355 | E112: 13:34:37 | F112: 800 | G112: 20.293 | H112: 0.95631
A113: 13:34:43 | B113: 1000 | C113: 0.029727 | D113: 0.005417 | E113: 13:34:43 | F113: 1000 | G113: 20.067 | H113: 0.94246
A114: 13:34:49 | B114: 1200 | C114: 0.02624 | D114: 0.0051118 | E114: 13:34:49 | F114: 1200 | G114: 19.815 | H114: 0.92696
A115: 13:34:56 | B115: 1400 | C115: 0.029727 | D115: 0.005417 | E115: 13:34:56 | F115: 1400 | G115: 19.607 | H115: 0.91417
A116: 13:35:01 | B116: 1600 | C116: 0.029727 | D116: 0.005417 | E116: 13:35:01 | F116: 1600 | G116: 19.365 | H116: 0.89934
A117: 13:35:07 | B117: 1800 | C117: 0.027984 | D117: 0.0052644 | E117: 13:35:07 | F117: 1800 | G117: 19.208 | H117: 0.88966
A118: 13:35:13 | B118: 2000 | C118: 0.028855 | D118: 0.0053407 | E118: 13:35:13 | F118: 2000 | G118: 18.939 | H118: 0.87315
A120: 13:36:07 | B120: -600 | C120: 0.027984 | D120: 0.0052644 | E120: 13:36:07 | F120: -600 | G120: 21.157 | H120: 1.0094
A121: 13:36:13 | B121: -400 | C121: 0.028855 | D121: 0.0053407 | E121: 13:36:13 | F121: -400 | G121: 21.145 | H121: 1.0087
A122: 13:36:19 | B122: -200 | C122: 0.028855 | D122: 0.0053407 | E122: 13:36:19 | F122: -200 | G122: 21.15 | H122: 1.009
A123: 13:36:26 | B123: 0 | C123: 0.027984 | D123: 0.0052644 | E123: 13:36:26 | F123: 0 | G123: 21.095 | H123: 1.0056
A124: 13:36:32 | B124: 200 | C124: 0.02624 | D124: 0.0051118 | E124: 13:36:32 | F124: 200 | G124: 20.998 | H124: 0.99965
A125: 13:36:38 | B125: 400 | C125: 0.027112 | D125: 0.0051881 | E125: 13:36:38 | F125: 400 | G125: 20.913 | H125: 0.99446
A126: 13:36:44 | B126: 600 | C126: 0.027112 | D126: 0.0051881 | E126: 13:36:44 | F126: 600 | G126: 20.808 | H126: 0.98796
A127: 13:36:50 | B127: 800 | C127: 0.028855 | D127: 0.0053407 | E127: 13:36:50 | F127: 800 | G127: 20.662 | H127: 0.97899
A128: 13:36:56 | B128: 1000 | C128: 0.027112 | D128: 0.0051881 | E128: 13:36:56 | F128: 1000 | G128: 20.625 | H128: 0.97676
A129: 13:37:01 | B129: 1200 | C129: 0.029727 | D129: 0.005417 | E129: 13:37:01 | F129: 1200 | G129: 20.466 | H129: 0.96699
A130: 13:37:08 | B130: 1400 | C130: 0.027112 | D130: 0.0051881 | E130: 13:37:08 | F130: 1400 | G130: 20.415 | H130: 0.96382
A131: 13:37:13 | B131: 1600 | C131: 0.027984 | D131: 0.0052644 | E131: 13:37:13 | F131: 1600 | G131: 20.343 | H131: 0.95943
A132: 13:37:19 | B132: 1800 | C132: 0.029727 | D132: 0.005417 | E132: 13:37:19 | F132: 1800 | G132: 20.199 | H132: 0.95058
A133: 13:37:25 | B133: 2000 | C133: 0.027112 | D133: 0.0051881 | E133: 13:37:25 | F133: 2000 | G133: 20.087 | H133: 0.94368
A135: 13:38:31 | B135: -600 | C135: 0.030599 | D135: 0.0054932 | E135: 13:38:31 | F135: -600 | G135: 21.218 | H135: 1.0132
A136: 13:38:37 | B136: -400 | C136: 0.029727 | D136: 0.005417 | E136: 13:38:37 | F136: -400 | G136: 21.265 | H136: 1.0161
A137: 13:38:43 | B137: -200 | C137: 0.029727 | D137: 0.005417 | E137: 13:38:43 | F137: -200 | G137: 21.236 | H137: 1.0143
A138: 13:38:49 | B138: 0 | C138: 0.030599 | D138: 0.0054932 | E138: 13:38:49 | F138: 0 | G138: 21.135 | H138: 1.0081
A139: 13:38:56 | B139: 200 | C139: 0.030599 | D139: 0.0054932 | E139: 13:38:56 | F139: 200 | G139: 21.061 | H139: 1.0035
A140: 13:39:01 | B140: 400 | C140: 0.027112 | D140: 0.0051881 | E140: 13:39:01 | F140: 400 | G140: 20.942 | H140: 0.9962
A141: 13:39:08 | B141: 600 | C141: 0.027984 | D141: 0.0052644 | E141: 13:39:08 | F141: 600 | G141: 20.875 | H141: 0.99211
A142: 13:39:14 | B142: 800 | C142: 0.027984 | D142: 0.0052644 | E142: 13:39:14 | F142: 800 | G142: 20.797 | H142: 0.98729
A143: 13:39:19 | B143: 1000 | C143: 0.027984 | D143: 0.0052644 | E143: 13:39:19 | F143: 1000 | G143: 20.778 | H143: 0.98613
A144: 13:39:26 | B144: 1200 | C144: 0.029727 | D144: 0.005417 | E144: 13:39:26 | F144: 1200 | G144: 20.702 | H144: 0.98149
A145: 13:39:32 | B145: 1400 | C145: 0.027984 | D145: 0.0052644 | E145: 13:39:32 | F145: 1400 | G145: 20.639 | H145: 0.97761
A146: 13:39:38 | B146: 1600 | C146: 0.027112 | D146: 0.0051881 | E146: 13:39:38 | F146: 1600 | G146: 20.537 | H146: 0.97136
A147: 13:39:44 | B147: 1800 | C147: 0.027984 | D147: 0.0052644 | E147: 13:39:44 | F147: 1800 | G147: 20.48 | H147: 0.96785
A148: 13:39:51 | B148: 2000 | C148: 0.029727 | D148: 0.005417 | E148: 13:39:51 | F148: 2000 | G148: 20.427 | H148: 0.96458
A150: 13:40:51 | B150: -600 | C150: 0.027984 | D150: 0.0052644 | E150: 13:40:51 | F150: -600 | G150: 21.205 | H150: 1.0124
A151: 13:40:56 | B151: -400 | C151: 0.027984 | D151: 0.0052644 | E151: 13:40:56 | F151: -400 | G151: 21.108 | H151: 1.0064
A152: 13:41:03 | B152: -200 | C152: 0.027112 | D152: 0.0051881 | E152: 13:41:03 | F152: -200 | G152: 20.869 | H152: 0.99174
A153: 13:41:09 | B153: 0 | C153: 0.027984 | D153: 0.0052644 | E153: 13:41:09 | F153: 0 | G153: 20.538 | H153: 0.97139
A154: 13:41:15 | B154: 200 | C154: 0.029727 | D154: 0.005417 | E154: 13:41:15 | F154: 200 | G154: 20.133 | H154: 0.94652
A155: 13:41:21 | B155: 400 | C155: 0.028855 | D155: 0.0053407 | E155: 13:41:21 | F155: 400 | G155: 19.774 | H155: 0.92442
A156: 13:41:28 | B156: 600 | C156: 0.028855 | D156: 0.0053407 | E156: 13:41:28 | F156: 600 | G156: 19.409 | H156: 0.90202
A157: 13:41:34 | B157: 800 | C157: 0.028855 | D157: 0.0053407 | E157: 13:41:34 | F157: 800 | G157: 19.052 | H157: 0.88005
A158: 13:41:39 | B158: 1000 | C158: 0.029727 | D158: 0.005417 | E158: 13:41:39 | F158: 1000 | G158: 18.616 | H158: 0.85328
A159: 13:41:45 | B159: 1200 | C159: 0.029727 | D159: 0.005417 | E159: 13:41:45 | F159: 1200 | G159: 18.273 | H159: 0.8322
A160: 13:41:52 | B160: 1400 | C160: 0.029727 | D160: 0.005417 | E160: 13:41:52 | F160: 1400 | G160: 17.844 | H160: 0.80586
A161: 13:41:57 | B161: 1600 | C161: 0.02624 | D161: 0.0051118 | E161: 13:41:57 | F161: 1600 | G161: 17.488 | H161: 0.78398
A162: 13:42:04 | B162: 1800 | C162: 0.027984 | D162: 0.0052644 | E162: 13:42:04 | F162: 1800 | G162: 17.052 | H162: 0.75718
A163: 13:42:09 | B163: 2000 | C163: 0.029727 | D163: 0.005417 | E163: 13:42:09 | F163: 2000 | G163: 16.597 | H163: 0.7292
A165: 13:43:08 | B165: -600 | C165: 0.029727 | D165: 0.005417 | E165: 13:43:08 | F165: -600 | G165: 21.196 | H165: 1.0118
A166: 13:43:13 | B166: -400 | C166: 0.027984 | D166: 0.0052644 | E166: 13:43:13 | F166: -400 | G166: 21.233 | H166: 1.0141
A167: 13:43:20 | B167: -200 | C167: 0.028855 | D167: 0.0053407 | E167: 13:43:20 | F167: -200 | G167: 21.18 | H167: 1.0108
A168: 13:43:26 | B168: 0 | C168: 0.024496 | D168: 0.0049592 | E168: 13:43:26 | F168: 0 | G168: 21.008 | H168: 1.0003
A169: 13:43:32 | B169: 200 | C169: 0.031471 | D169: 0.0055695 | E169: 13:43:32 | F169: 200 | G169: 20.764 | H169: 0.98528
A170: 13:43:38 | B170: 400 | C170: 0.029727 | D170: 0.005417 | E170: 13:43:38 | F170: 400 | G170: 20.572 | H170: 0.9735
A171: 13:43:43 | B171: 600 | C171: 0.029727 | D171: 0.005417 | E171: 13:43:43 | F171: 600 | G171: 20.384 | H171: 0.9619
A172: 13:43:50 | B172: 800 | C172: 0.027112 | D172: 0.0051881 | E172: 13:43:50 | F172: 800 | G172: 20.132 | H172: 0.94646
A173: 13:43:56 | B173: 1000 | C173: 0.028855 | D173: 0.0053407 | E173: 13:43:56 | F173: 1000 | G173: 19.897 | H173: 0.93202
A174: 13:44:02 | B174: 1200 | C174: 0.029727 | D174: 0.005417 | E174: 13:44:02 | F174: 1200 | G174: 19.696 | H174: 0.91963
A175: 13:44:08 | B175: 1400 | C175: 0.027984 | D175: 0.0052644 | E175: 13:44:08 | F175: 1400 | G175: 19.526 | H175: 0.90919
A176: 13:44:14 | B176: 1600 | C176: 0.027984 | D176: 0.0052644 | E176: 13:44:14 | F176: 1600 | G176: 19.344 | H176: 0.89799
A177: 13:44:21 | B177: 1800 | C177: 0.027112 | D177: 0.0051881 | E177: 13:44:21 | F177: 1800 | G177: 19.107 | H177: 0.88347
A178: 13:44:27 | B178: 2000 | C178: 0.027984 | D178: 0.0052644 | E178: 13:44:27 | F178: 2000 | G178: 18.865 | H178: 0.86857
A180: 13:45:39 | B180: -600 | C180: 0.027984 | D180: 0.0052644 | E180: 13:45:39 | F180: -600 | G180: 21.166 | H180: 1.01
A181: 13:45:46 | B181: -400 | C181: 0.028855 | D181: 0.0053407 | E181: 13:45:46 | F181: -400 | G181: 21.153 | H181: 1.0092
A182: 13:45:51 | B182: -200 | C182: 0.029727 | D182: 0.005417 | E182: 13:45:51 | F182: -200 | G182: 21.149 | H182: 1.0089
A183: 13:45:57 | B183: 0 | C183: 0.029727 | D183: 0.005417 | E183: 13:45:57 | F183: 0 | G183: 21.06 | H183: 1.0035
A184: 13:46:03 | B184: 200 | C184: 0.027984 | D184: 0.0052644 | E184: 13:46:03 | F184: 200 | G184: 20.958 | H184: 0.99718
A185: 13:46:09 | B185: 400 | C185: 0.029727 | D185: 0.005417 | E185: 13:46:09 | F185: 400 | G185: 20.822 | H185: 0.98885
A186: 13:46:16 | B186: 600 | C186: 0.027112 | D186: 0.0051881 | E186: 13:46:16 | F186: 600 | G186: 20.719 | H186: 0.9825
A187: 13:46:22 | B187: 800 | C187: 0.02624 | D187: 0.0051118 | E187: 13:46:22 | F187: 800 | G187: 20.633 | H187: 0.97722
A188: 13:46:28 | B188: 1000 | C188: 0.028855 | D188: 0.0053407 | E188: 13:46:28 | F188: 1000 | G188: 20.532 | H188: 0.97099
A189: 13:46:34 | B189: 1200 | C189: 0.029727 | D189: 0.005417 | E189: 13:46:34 | F189: 1200 | G189: 20.457 | H189: 0.96638
A190: 13:46:40 | B190: 1400 | C190: 0.027984 | D190: 0.0052644 | E190: 13:46:40 | F190: 1400 | G190: 20.353 | H190: 0.96001
A191: 13:46:46 | B191: 1600 | C191: 0.029727 | D191: 0.005417 | E191: 13:46:46 | F191: 1600 | G191: 20.24 | H191: 0.95311
A192: 13:46:53 | B192: 1800 | C192: 0.030599 | D192: 0.0054932 | E192: 13:46:53 | F192: 1800 | G192: 20.11 | H192: 0.94508
A193: 13:46:58 | B193: 2000 | C193: 0.029727 | D193: 0.005417 | E193: 13:46:58 | F193: 2000 | G193: 20.002 | H193: 0.93843
A195: 13:48:03 | B195: -600 | C195: 0.029727 | D195: 0.005417 | E195: 13:48:03 | F195: -600 | G195: 21.097 | H195: 1.0058
A196: 13:48:10 | B196: -400 | C196: 0.028855 | D196: 0.0053407 | E196: 13:48:10 | F196: -400 | G196: 21.068 | H196: 1.004
A197: 13:48:16 | B197: -200 | C197: 0.027112 | D197: 0.0051881 | E197: 13:48:16 | F197: -200 | G197: 21.045 | H197: 1.0025
A198: 13:48:22 | B198: 0 | C198: 0.030599 | D198: 0.0054932 | E198: 13:48:22 | F198: 0 | G198: 20.847 | H198: 0.9904
A199: 13:48:28 | B199: 200 | C199: 0.028855 | D199: 0.0053407 | E199: 13:48:28 | F199: 200 | G199: 20.644 | H199: 0.97789
A200: 13:48:33 | B200: 400 | C200: 0.029727 | D200: 0.005417 | E200: 13:48:33 | F200: 400 | G200: 20.462 | H200: 0.96672
A201: 13:48:40 | B201: 600 | C201: 0.028855 | D201: 0.0053407 | E201: 13:48:40 | F201: 600 | G201: 20.216 | H201: 0.95158
A202: 13:48:45 | B202: 800 | C202: 0.030599 | D202: 0.0054932 | E202: 13:48:45 | F202: 800 | G202: 19.99 | H202: 0.9377
A203: 13:48:51 | B203: 1000 | C203: 0.030599 | D203: 0.0054932 | E203: 13:48:51 | F203: 1000 | G203: 19.791 | H203: 0.92546
A204: 13:48:57 | B204: 1200 | C204: 0.029727 | D204: 0.005417 | E204: 13:48:57 | F204: 1200 | G204: 19.554 | H204: 0.91093
A205: 13:49:03 | B205: 1400 | C205: 0.029727 | D205: 0.005417 | E205: 13:49:03 | F205: 1400 | G205: 19.335 | H205: 0.89744
A206: 13:49:09 | B206: 1600 | C206: 0.029727 | D206: 0.005417 | E206: 13:49:09 | F206: 1600 | G206: 19.101 | H206: 0.8831
A207: 13:49:15 | B207: 1800 | C207: 0.028855 | D207: 0.0053407 | E207: 13:49:15 | F207: 1800 | G207: 18.848 | H207: 0.86757
A208: 13:49:21 | B208: 2000 | C208: 0.029727 | D208: 0.005417 | E208: 13:49:21 | F208: 2000 | G208: 18.603 | H208: 0.85246
A210: 13:50:06 | B210: -600 | C210: 0.030599 | D210: 0.0054932 | E210: 13:50:06 | F210: -600 | G210: 21.097 | H210: 1.0058
A211: 13:50:12 | B211: -400 | C211: 0.030599 | D211: 0.0054932 | E211: 13:50:12 | F211: -400 | G211: 21.087 | H211: 1.0051
A212: 13:50:17 | B212: -200 | C212: 0.027112 | D212: 0.0051881 | E212: 13:50:17 | F212: -200 | G212: 21.085 | H212: 1.005
A213: 13:50:23 | B213: 0 | C213: 0.028855 | D213: 0.0053407 | E213: 13:50:23 | F213: 0 | G213: 21.003 | H213: 0.99998
A214: 13:50:29 | B214: 200 | C214: 0.030599 | D214: 0.0054932 | E214: 13:50:29 | F214: 200 | G214: 20.914 | H214: 0.99449
... 93 more rows

Sheet Parameters
A2: Parameters
B3: Atm saturation in % (100% = atm.) | F3: 21 | G3: %
B4: Atm saturation in µM | F4: 200 | G4: µmol/l Oxygen
B5: Molar gasvolume | F5: 22.4 | G5: l
B6: Diffusion coefficient | F6: 3.37e-05 | G6: cm2s-1
B7: Well diameter | F7: 0.68 | G7: mm
B8: Well area | F8: =PI()*(F7/20)^2 -> 0.003631681108 | G8: cm2
